[Event "BL Meisterschaftsturnier 2020"]
[Site "Karlsruhe"]
[Date "2020.09.17"]
[Round "2.15"]
[White "Polzin, Rainer"]
[Black "Zaragatski, Ilja"]
[Result "0-1"]
[ECO "B01"]
[WhiteElo "2415"]
[BlackElo "2517"]
[Annotator "RC"]
[PlyCount "158"]
[EventDate "2020.09.16"]
[EventType "team-tourn"]
[EventCountry "GER"]
[SourceTitle "playchess.com"]
[Source "ChessBase"]
[SourceQuality "1"]
[WhiteTeam "SF Berlin"]
[BlackTeam "Viernheim"]
[TimeControl "40/5400+30:1800+30"]

1. e4 {[%emt 0:00:00]} d5 {[%emt 0:00:03]} 2. exd5 {[%emt 0:00:00]} Qxd5 {[%emt 0:00:11]} 3. Nc3 {[%emt 0:00:00]} Qa5 {[%emt 0:00:07]} 4. d4 {[%emt 0:00:00]} Nf6 {[%emt 0:00:09]} 5. Nf3 {[%emt 0:00:00]} Bf5 {[%emt 0:00:10]} 6. Bc4 {[%emt 0:00:14]} e6 {[%emt 0:00:13]} 7. Bd2 {[%emt 0:00:11]} Bb4 {[%emt 0:00:08]} 8. Ne5 {[%emt 0:14:26]} Qb6 {[%emt 0:20:54]} 9. O-O {[%emt 0:02:15]} Qxd4 {[%emt 0:20:43]} 10. Nb5 {[%emt 0:11:35]} Qxd2 {[%emt 0:07:48]} 11. Nxc7+ {[%emt 0:01:12]} Ke7 {[%emt 0:00:11]} 12. Qf3 {[%emt 0:01:04]} Bd6 {[%emt 0:22:26]} 13. Qxb7 {[%emt 0:40:37]} Nfd7 {[%emt 0:01:15]} 14. Nf3 {[%emt 0:07:34]} Qf4 {[%emt 0:04:28]} 15. Nd5+ {[%emt 0:02:56]} exd5 {[%emt 0:00:05]} 16. Bxd5 {[%emt 0:00:11]} Kf6 {[%emt 0:08:12]} 17. Qxa8 {[%emt 0:03:19]} Nb6 {[%emt 0:02:58]} 18. Qb7 {[%emt 0:00:08]} N8d7 {[%emt 0:01:18]} 19. g3 {[%emt 0:05:36]} Qb4 {[%emt 0:01:18]} 20. Nh4 {[%emt 0:01:19]} Rb8 {[%emt 0:01:55]} 21. Qxa7 {[%emt 0:00:06]} Bxc2 {[%emt 0:01:08]} 22. Bg2 {[%emt 0:03:07]} g5 {[%emt 0:00:30]} 23. Nf3 {[%emt 0:00:14]} Ra8 {[%emt 0:03:10]} 24. Qb7 {[%emt 0:02:16]} Be4 {[%emt 0:00:05]} 25. a3 {[%emt 0:00:09]} Qc4 {[%emt 0:01:06]} 26. Nd2 {[%emt 0:01:14]} Qxf1+ {[%emt 0:00:53]} 27. Kxf1 {[%emt 0:00:58]} Bxb7 {[%emt 0:00:04]} 28. Bxb7 {[%emt 0:00:05]} Rb8 {[%emt 0:00:14]} 29. Ne4+ {[%emt 0:00:19]} Ke7 {[%emt 0:01:01]} 30. Re1 {[%emt 0:00:32]} Ne5 {[%emt 0:00:45]} 31. Ba6 {[%emt 0:01:27]} g4 {[%emt 0:00:40]} 32. Kg2 {[%emt 0:01:20]} Nbd7 {[%emt 0:00:41]} 33. b4 {[%emt 0:00:30]} Ra8 {[%emt 0:00:58]} 34. b5 {[%emt 0:01:31]} Bxa3 {[%emt 0:00:16]} 35. h3 {[%emt 0:00:06]} h5 {[%emt 0:00:26]} 36. Nc3 {[%emt 0:00:30]} Kd8 {[%emt 0:00:53]} 37. Nd5 {[%emt 0:00:06]} Bc5 {[%emt 0:00:24]} 38. hxg4 {[%emt 0:00:19]} hxg4 {[%emt 0:00:02]} 39. Rd1 {[%emt 0:01:04]} Rb8 {[%emt 0:00:29]} 40. Rh1 {[%emt 0:00:52]} Nf8 {[%emt 0:00:57]} 41. Rh5 {[%emt 0:07:42]} Nfg6 {[%emt 0:03:49]} 42. Rh1 {[%emt 0:09:50]} Ke8 {[%emt 0:01:24]} 43. Rd1 {[%emt 0:01:11]} Kf8 {[%emt 0:01:28]} 44. Rc1 {[%emt 0:06:08]} Bxf2 {[%emt 0:07:23]} 45. Rc8+ {[%emt 0:00:06]} Rxc8 {[%emt 0:00:04]} 46. Bxc8 {[%emt 0:00:08]} Bc5 {[%emt 0:05:53]} 47. b6 {[%emt 0:00:37]} Ne7 {[%emt 0:00:56]} 48. b7 {[%emt 0:00:09]} N7c6 {[%emt 0:02:46]} 49. Nf6 {[%emt 0:00:15]} Ke7 {[%emt 0:01:44]} 50. Nxg4 {[%emt 0:00:10]} Nxg4 {[%emt 0:01:28]} 51. Bxg4 {[%emt 0:00:04]} Kd6 {[%emt 0:02:14]} 52. Bf3 {[%emt 0:04:05]} Nb8 {[%emt 0:00:05]} 53. Kh3 {[%emt 0:01:10]} f6 {[%emt 0:03:39]} 54. Kg4 {[%emt 0:01:07]} Be3 {[%emt 0:01:54]} 55. Kf5 {[%emt 0:01:44]} Bg5 {[%emt 0:00:05]} 56. Ke4 {[%emt 0:01:34]} Kc7 {[%emt 0:00:04]} 57. Kd4 {[%emt 0:00:07]} Nd7 {[%emt 0:00:58]} 58. Be4 {[%emt 0:00:08]} Bd2 {[%emt 0:01:07]} 59. Bd5 {[%emt 0:01:38]} Be1 {[%emt 0:00:45]} 60. g4 {[%emt 0:00:01]} Bf2+ {[%emt 0:00:51]} 61. Ke4 {[%emt 0:00:49]} Nc5+ {[%emt 0:00:20]} 62. Kf5 {[%emt 0:00:08]} Bh4 {[%emt 0:00:06]} 63. Kg6 {[%emt 0:00:40]} Nxb7 {[%emt 0:00:07]} 64. Kf5 {[%emt 0:00:36]} Nc5 {[%emt 0:00:05]} 65. Ba2 {[%emt 0:00:41]} Kd6 {[%emt 0:00:04]} 66. Bc4 {[%emt 0:00:04]} Bg5 {[%emt 0:00:48]} 67. Ba2 {[%emt 0:00:09]} Nb7 {[%emt 0:00:52]} 68. Bb3 {[%emt 0:00:35]} Kc5 {[%emt 0:01:44]} 69. Ba2 {[%emt 0:00:14]} Kd4 {[%emt 0:00:34]} 70. Bb3 {[%emt 0:00:34]} Nd6+ {[%emt 0:00:38]} 71. Kg6 {[%emt 0:00:06]} Ke5 {[%emt 0:00:19]} 72. Ba2 {[%emt 0:00:16]} Ne4 {[%emt 0:00:36]} 73. Bb3 {[%emt 0:01:43]} Nc5 {[%emt 0:00:24]} 74. Bc2 {[%emt 0:00:45]} Kf4 {[%emt 0:01:06]} 75. Bf5 {[%emt 0:00:18]} Ne4 {[%emt 0:00:04]} 76. Be6 {[%emt 0:01:04]} Nf2 {[%emt 0:00:29]} 77. Kh5 {[%emt 0:00:07]} Kg3 {[%emt 0:00:03]} 78. Bf5 {[%emt 0:01:18]} Nh3 {[%emt 0:00:25]} 79. Kg6 {[%emt 0:00:05]} Kh4 {[%emt 0:00:21]} 0-1

[Event "BL Meisterschaftsturnier 2020"]
[Site "Karlsruhe"]
[Date "2020.09.17"]
[Round "2.16"]
[White "Heinemann, Josefine"]
[Black "Rudolf, Henrik"]
[Result "1-0"]
[ECO "B85"]
[WhiteElo "2289"]
[BlackElo "2295"]
[Annotator "ChessBase"]
[PlyCount "81"]
[EventDate "2020.09.16"]
[EventType "team-tourn"]
[EventCountry "GER"]
[SourceTitle "playchess.com"]
[Source "ChessBase"]
[SourceQuality "1"]
[WhiteTeam "Viernheim"]
[BlackTeam "SF Berlin"]
[TimeControl "40/5400+30:1800+30"]

1. e4 {[%emt 0:00:00]} c5 {[%emt 0:00:00]} 2. Nf3 {[%emt 0:00:00]} Nc6 {[%emt 0:00:00]} 3. d4 {[%emt 0:00:00]} cxd4 {[%emt 0:00:00]} 4. Nxd4 {[%emt 0:00:00]} Qc7 {[%emt 0:00:06]} 5. Nc3 {[%emt 0:00:12]} e6 {[%emt 0:00:09]} 6. Be2 {[%emt 0:00:34]} Nf6 {[%emt 0:01:05]} 7. O-O {[%emt 0:00:37]} a6 {[%emt 0:00:36]} 8. Be3 {[%emt 0:00:38]} Be7 {[%emt 0:00:44]} 9. f4 {[%emt 0:00:52]} d6 {[%emt 0:00:11]} 10. Qe1 {[%emt 0:02:56]} O-O {[%emt 0:01:57]} 11. Kh1 {[%emt 0:03:34]} Nxd4 {[%emt 0:08:19]} 12. Bxd4 {[%emt 0:02:04]} b5 {[%emt 0:00:30]} 13. Qg3 {[%emt 0:10:56]} Bb7 {[%emt 0:08:16]} 14. a3 {[%emt 0:16:19]} Rad8 {[%emt 0:05:02]} 15. Rae1 {[%emt 0:05:09]} Bc6 {[%emt 0:15:49]} 16. Bd3 {[%emt 0:02:22]} Rd7 {[%emt 0:11:00]} 17. e5 {[%emt 0:09:05]} dxe5 {[%emt 0:09:32]} 18. Bxe5 {[%emt 0:00:28]} Qb7 {[%emt 0:06:03]} 19. Ne4 {[%emt 0:05:49]} Nh5 {[%emt 0:01:40]} 20. Qh3 {[%emt 0:02:57]} g6 {[%emt 0:07:32]} 21. Re3 {[%emt 0:08:52]} Rfd8 {[%emt 0:05:29]} 22. Ng5 {[%emt 0:06:07]} Bc5 {[%emt 0:09:38]} 23. Re2 {[%emt 0:02:37]} Rxd3 {[%emt 0:03:36]} 24. cxd3 {[%emt 0:00:08]} Qd7 {[%emt 0:00:20]} 25. Ne4 {[%emt 0:05:12]} Be7 {[%emt 0:00:05]} 26. Re3 {[%emt 0:03:12]} f5 {[%emt 0:00:33]} 27. Nc3 {[%emt 0:02:17]} a5 {[%emt 0:02:45]} 28. d4 {[%emt 0:01:50]} b4 {[%emt 0:00:36]} 29. axb4 {[%emt 0:00:42]} axb4 {[%emt 0:00:02]} 30. Nd1 {[%emt 0:01:28]} Qd5 {[%emt 0:01:23]} 31. Qf3 {[%emt 0:01:55]} Qc4 {[%emt 0:00:59]} 32. Qf2 {[%emt 0:00:21]} Nf6 {[%emt 0:00:08]} 33. Ree1 {[%emt 0:03:04]} Ne4 {[%emt 0:00:42]} 34. Qe3 {[%emt 0:00:13]} Bh4 {[%emt 0:00:32]} 35. Nf2 {[%emt 0:02:26]} Nxf2+ {[%emt 0:00:17]} 36. Rxf2 {[%emt 0:00:03]} Bxf2 {[%emt 0:00:51]} 37. Qxf2 {[%emt 0:00:03]} Ra8 {[%emt 0:00:44]} 38. h3 {[%emt 0:01:45]} Qd5 {[%emt 0:00:55]} 39. Kh2 {[%emt 0:00:16]} Ra2 {[%emt 0:00:25]} 40. Re2 {[%emt 0:00:37]} Qb5 {[%emt 0:00:54]} 41. Qh4 {[%emt 0:05:35]} 1-0

[Event "BL Meisterschaftsturnier 2020"]
[Site "Karlsruhe"]
[Date "2020.09.17"]
[Round "3.1"]
[White "Seel, Christian"]
[Black "McShane, Luke J"]
[Result "1/2-1/2"]
[ECO "B36"]
[WhiteElo "2475"]
[BlackElo "2680"]
[Annotator "ChessBase"]
[PlyCount "55"]
[EventDate "2020.09.16"]
[EventType "team-tourn"]
[EventCountry "GER"]
[WhiteTeam "Aachen"]
[BlackTeam "Werder Bremen"]
[TimeControl "40/5400+30:1800+30"]

1. Nf3 {[%emt 0:00:00]} c5 {[%emt 0:03:58]} 2. c4 {[%emt 0:00:00]} g6 {[%emt 0:01:33]} 3. e4 {[%emt 0:00:06]} Nc6 {[%emt 0:04:21]} 4. d4 {[%emt 0:00:40]} cxd4 {[%emt 0:00:05]} 5. Nxd4 {[%emt 0:00:03]} Nf6 {[%emt 0:00:20]} 6. Nc3 {[%emt 0:00:05]} Nxd4 {[%emt 0:01:06]} 7. Qxd4 {[%emt 0:00:07]} d6 {[%emt 0:00:06]} 8. Be2 {[%emt 0:07:38]} Bg7 {[%emt 0:00:08]} 9. Be3 {[%emt 0:00:51]} O-O {[%emt 0:00:09]} 10. Qd2 {[%emt 0:00:07]} a5 {[%emt 0:04:21]} 11. O-O {[%emt 0:05:10]} a4 {[%emt 0:00:51]} 12. f3 {[%emt 0:04:30]} Qa5 {[%emt 0:04:37]} 13. Rab1 {[%emt 0:10:05]} Be6 {[%emt 0:02:10]} 14. Rfc1 {[%emt 0:00:58]} Rfc8 {[%emt 0:04:01]} 15. b4 {[%emt 0:01:23]} axb3 {[%emt 0:01:45]} 16. axb3 {[%emt 0:00:06]} Qb4 {[%emt 0:03:44]} 17. Nd5 {[%emt 0:04:30]} Qxd2 {[%emt 0:05:26]} 18. Bxd2 {[%emt 0:00:31]} Ra2 {[%emt 0:25:45]} 19. Nxe7+ {[%emt 0:12:45]} Kf8 {[%emt 0:00:08]} 20. Nxc8 {[%emt 0:00:09]} Rxd2 {[%emt 0:00:09]} 21. Nxd6 {[%emt 0:00:35]} Nh5 {[%emt 0:05:10]} 22. Bf1 {[%emt 0:20:40]} Rxd6 {[%emt 0:00:16]} 23. Rd1 {[%emt 0:00:27]} Ra6 {[%emt 0:16:43]} 24. c5 {[%emt 0:06:27]} Ra8 {[%emt 0:00:16]} 25. Bc4 {[%emt 0:03:06]} Nf4 {[%emt 0:02:30]} 26. Bxe6 {[%emt 0:01:43]} Nxe6 {[%emt 0:01:58]} 27. b4 {[%emt 0:00:44]} Bd4+ {[%emt 0:04:11]} 28. Kh1 {[%emt 0:00:20]} 1/2-1/2

[Event "BL Meisterschaftsturnier 2020"]
[Site "Karlsruhe"]
[Date "2020.09.17"]
[Round "3.2"]
[White "Areshchenko, Alexander"]
[Black "Koch, Thomas"]
[Result "1-0"]
[ECO "B84"]
[WhiteElo "2678"]
[BlackElo "2461"]
[Annotator "ChessBase"]
[PlyCount "41"]
[EventDate "2020.09.16"]
[EventType "team-tourn"]
[EventCountry "GER"]
[WhiteTeam "Werder Bremen"]
[BlackTeam "Aachen"]
[TimeControl "40/5400+30:1800+30"]

1. e4 {[%emt 0:00:00]} c5 {[%emt 0:00:00]} 2. Nf3 {[%emt 0:00:00]} d6 {[%emt 0:00:00]} 3. d4 {[%emt 0:00:00]} cxd4 {[%emt 0:00:00]} 4. Nxd4 {[%emt 0:00:00]} Nf6 {[%emt 0:00:02]} 5. Nc3 {[%emt 0:00:00]} a6 {[%emt 0:00:06]} 6. Be2 {[%emt 0:00:00]} e6 {[%emt 0:00:07]} 7. f4 {[%emt 0:00:38]} Qc7 {[%emt 0:02:00]} 8. O-O {[%emt 0:00:46]} Be7 {[%emt 0:00:21]} 9. Be3 {[%emt 0:00:44]} O-O {[%emt 0:00:34]} 10. g4 {[%emt 0:00:56]} Nc6 {[%emt 0:14:54]} 11. g5 {[%emt 0:02:46]} Nxd4 {[%emt 0:04:14]} 12. Qxd4 {[%emt 0:03:08]} Nd7 {[%emt 0:00:06]} 13. f5 {[%emt 0:05:02]} Re8 {[%emt 0:00:58]} 14. Rf2 {[%emt 0:37:42]} b5 {[%emt 0:06:48]} 15. fxe6 {[%emt 0:07:03]} fxe6 {[%emt 0:00:05]} 16. Nd5 {[%emt 0:03:45]} exd5 {[%emt 0:00:24]} 17. Qxd5+ {[%emt 0:00:02]} Kh8 {[%emt 0:00:08]} 18. Qxa8 {[%emt 0:00:10]} Nb6 {[%emt 0:00:16]} 19. Bxb6 {[%emt 0:00:17]} Qxb6 {[%emt 0:00:08]} 20. Raf1 {[%emt 0:07:13]} Bxg5 {[%emt 0:33:52]} 21. Qc6 {[%emt 0:01:24]} 1-0

[Event "BL Meisterschaftsturnier 2020"]
[Site "Karlsruhe"]
[Date "2020.09.17"]
[Round "3.2"]
[White "Tari, Aryan"]
[Black "Malakhov, Vladimir"]
[Result "1/2-1/2"]
[ECO "C45"]
[WhiteElo "2630"]
[BlackElo "2669"]
[Annotator "ChessBase"]
[PlyCount "41"]
[EventDate "2020.09.16"]
[EventType "team-tourn"]
[EventCountry "GER"]
[WhiteTeam "Solingen"]
[BlackTeam "Viernheim"]
[TimeControl "40/5400+30:1800+30"]

1. e4 {[%emt 0:00:22]} e5 {[%emt 0:00:00]} 2. Nf3 {[%emt 0:00:08]} Nc6 {[%emt 0:00:00]} 3. d4 {[%emt 0:00:04]} exd4 {[%emt 0:00:18]} 4. Nxd4 {[%emt 0:00:06]} Bc5 {[%emt 0:00:10]} 5. Nxc6 {[%emt 0:00:11]} bxc6 {[%emt 0:02:59]} 6. Bd3 {[%emt 0:01:00]} Qh4 {[%emt 0:03:34]} 7. O-O {[%emt 0:01:03]} Nf6 {[%emt 0:02:59]} 8. Qf3 {[%emt 0:00:35]} O-O {[%emt 0:08:11]} 9. e5 {[%emt 0:01:27]} Ng4 {[%emt 0:01:06]} 10. Bf4 {[%emt 0:00:29]} Bd4 {[%emt 0:03:14]} 11. Bg3 {[%emt 0:01:17]} Nxe5 {[%emt 0:00:21]} 12. Qf5 {[%emt 0:01:00]} d6 {[%emt 0:01:01]} 13. Qxe5 {[%emt 0:01:56]} Bxe5 {[%emt 0:01:14]} 14. Bxh4 {[%emt 0:00:09]} Bxb2 {[%emt 0:00:03]} 15. Nd2 {[%emt 0:00:27]} Bxa1 {[%emt 0:00:06]} 16. Rxa1 {[%emt 0:00:05]} Rb8 {[%emt 0:03:01]} 17. f3 {[%emt 0:02:03]} Be6 {[%emt 0:02:50]} 18. Bf2 {[%emt 0:07:43]} c5 {[%emt 0:00:42]} 19. Kf1 {[%emt 0:14:28]} f6 {[%emt 0:11:33]} 20. Ke1 {[%emt 0:05:11]} Rfe8 {[%emt 0:01:44]} 21. Kd1 {[%emt 0:04:32]} 1/2-1/2

[Event "BL Meisterschaftsturnier 2020"]
[Site "Karlsruhe"]
[Date "2020.09.17"]
[Round "3.3"]
[White "Vandenbussche, Thibaut"]
[Black "Efimenko, Zahar"]
[Result "1/2-1/2"]
[ECO "B30"]
[WhiteElo "2435"]
[BlackElo "2602"]
[Annotator "ChessBase"]
[PlyCount "79"]
[EventDate "2020.09.16"]
[EventType "team-tourn"]
[EventCountry "GER"]
[WhiteTeam "Aachen"]
[BlackTeam "Werder Bremen"]
[TimeControl "40/5400+30:1800+30"]

1. e4 {[%emt 0:00:00]} c5 {[%emt 0:00:19]} 2. Nf3 {[%emt 0:00:00]} Nc6 {[%emt 0:00:11]} 3. Bb5 {[%emt 0:00:03]} d6 {[%emt 0:00:20]} 4. O-O {[%emt 0:00:13]} Bd7 {[%emt 0:00:10]} 5. Re1 {[%emt 0:00:10]} Nf6 {[%emt 0:00:29]} 6. c3 {[%emt 0:00:07]} a6 {[%emt 0:00:11]} 7. Bf1 {[%emt 0:00:05]} Bg4 {[%emt 0:00:29]} 8. h3 {[%emt 0:00:06]} Bxf3 {[%emt 0:00:41]} 9. Qxf3 {[%emt 0:00:05]} e6 {[%emt 0:00:16]} 10. d3 {[%emt 0:05:05]} Be7 {[%emt 0:00:57]} 11. Nd2 {[%emt 0:01:21]} O-O {[%emt 0:00:23]} 12. Qd1 {[%emt 0:06:19]} d5 {[%emt 0:00:55]} 13. e5 {[%emt 0:01:49]} Nd7 {[%emt 0:00:37]} 14. Nf3 {[%emt 0:00:04]} d4 {[%emt 0:02:34]} 15. g3 {[%emt 0:05:22]} b5 {[%emt 0:02:56]} 16. Bg2 {[%emt 0:04:51]} Rc8 {[%emt 0:00:24]} 17. h4 {[%emt 0:09:28]} dxc3 {[%emt 0:02:18]} 18. bxc3 {[%emt 0:00:06]} Nb6 {[%emt 0:00:23]} 19. Ng5 {[%emt 0:06:08]} Nd5 {[%emt 0:17:56]} 20. Qg4 {[%emt 0:16:27]} Qd7 {[%emt 0:13:11]} 21. c4 {[%emt 0:22:21]} Nc3 {[%emt 0:02:48]} 22. cxb5 {[%emt 0:09:54]} axb5 {[%emt 0:00:55]} 23. Bb2 {[%emt 0:00:07]} b4 {[%emt 0:07:57]} 24. Bxc3 {[%emt 0:00:43]} bxc3 {[%emt 0:00:18]} 25. Bxc6 {[%emt 0:02:37]} Rxc6 {[%emt 0:01:40]} 26. Qc4 {[%emt 0:03:18]} Rd8 {[%emt 0:02:44]} 27. Re3 {[%emt 0:00:17]} Qd4 {[%emt 0:11:45]} 28. Rc1 {[%emt 0:00:17]} Ra8 {[%emt 0:02:06]} 29. Re4 {[%emt 0:02:03]} Qxc4 {[%emt 0:05:13]} 30. Rxc4 {[%emt 0:00:05]} Rxa2 {[%emt 0:01:55]} 31. R1xc3 {[%emt 0:00:53]} Rb6 {[%emt 0:03:42]} 32. d4 {[%emt 0:02:37]} h6 {[%emt 0:01:47]} 33. Ne4 {[%emt 0:00:53]} cxd4 {[%emt 0:01:30]} 34. Rxd4 {[%emt 0:00:01]} Rb7 {[%emt 0:02:00]} 35. Rc8+ {[%emt 0:01:27]} Kh7 {[%emt 0:00:16]} 36. Rdc4 {[%emt 0:00:49]} Ra5 {[%emt 0:03:33]} 37. R8c7 {[%emt 0:00:43]} Rxc7 {[%emt 0:00:30]} 38. Rxc7 {[%emt 0:00:02]} Rxe5 {[%emt 0:01:06]} 39. Rxe7 {[%emt 0:00:15]} Rxe4 {[%emt 0:00:05]} 40. Rxf7 {[%emt 0:00:07]} 1/2-1/2

[Event "BL Meisterschaftsturnier 2020"]
[Site "Karlsruhe"]
[Date "2020.09.17"]
[Round "3.4"]
[White "Andersen, Mads"]
[Black "Korobov, Anton"]
[Result "1/2-1/2"]
[ECO "D12"]
[WhiteElo "2585"]
[BlackElo "2688"]
[Annotator "ChessBase"]
[PlyCount "44"]
[EventDate "2020.09.16"]
[EventType "team-tourn"]
[EventCountry "GER"]
[WhiteTeam "Solingen"]
[BlackTeam "Viernheim"]
[TimeControl "40/5400+30:1800+30"]

1. d4 {[%emt 0:00:00]} d5 {[%emt 0:00:00]} 2. c4 {[%emt 0:00:06]} c6 {[%emt 0:00:00]} 3. Nf3 {[%emt 0:00:12]} Nf6 {[%emt 0:00:00]} 4. e3 {[%emt 0:00:28]} Bf5 {[%emt 0:00:14]} 5. Nc3 {[%emt 0:00:23]} e6 {[%emt 0:00:08]} 6. Nh4 {[%emt 0:01:02]} Bg6 {[%emt 0:00:09]} 7. Be2 {[%emt 0:02:58]} Nbd7 {[%emt 0:00:34]} 8. g3 {[%emt 0:06:27]} Bd6 {[%emt 0:02:49]} 9. O-O {[%emt 0:04:17]} a6 {[%emt 0:02:13]} 10. a4 {[%emt 0:04:17]} a5 {[%emt 0:03:56]} 11. Qb3 {[%emt 0:08:19]} Qb8 {[%emt 0:02:56]} 12. Nxg6 {[%emt 0:06:40]} hxg6 {[%emt 0:00:17]} 13. Bf3 {[%emt 0:00:15]} O-O {[%emt 0:02:48]} 14. Rd1 {[%emt 0:05:33]} Bb4 {[%emt 0:01:51]} 15. Na2 {[%emt 0:01:28]} Bd6 {[%emt 0:00:18]} 16. Nc3 {[%emt 0:05:52]} Bb4 {[%emt 0:00:12]} 17. Na2 {[%emt 0:00:07]} Bd6 {[%emt 0:00:05]} 18. Bg2 {[%emt 0:00:18]} Qa7 {[%emt 0:02:26]} 19. Nc3 {[%emt 0:01:03]} Bb4 {[%emt 0:00:15]} 20. Na2 {[%emt 0:00:18]} Bd6 {[%emt 0:00:29]} 21. Nc3 {[%emt 0:03:11]} Bb4 {[%emt 0:00:08]} 22. Na2 {[%emt 0:00:05]} Bd6 {[%emt 0:00:07]} 1/2-1/2

[Event "BL Meisterschaftsturnier 2020"]
[Site "Karlsruhe"]
[Date "2020.09.17"]
[Round "3.4"]
[White "Van Foreest, Lucas"]
[Black "Piceu, Tom"]
[Result "0-1"]
[ECO "B96"]
[WhiteElo "2531"]
[BlackElo "2347"]
[Annotator "ChessBase"]
[PlyCount "74"]
[EventDate "2020.09.16"]
[EventType "team-tourn"]
[EventCountry "GER"]
[WhiteTeam "Werder Bremen"]
[BlackTeam "Aachen"]
[TimeControl "40/5400+30:1800+30"]

1. e4 {[%emt 0:00:00]} c5 {[%emt 0:00:00]} 2. Nf3 {[%emt 0:00:00]} d6 {[%emt 0:00:00]} 3. d4 {[%emt 0:00:00]} cxd4 {[%emt 0:00:00]} 4. Nxd4 {[%emt 0:00:00]} Nf6 {[%emt 0:00:00]} 5. Nc3 {[%emt 0:00:00]} a6 {[%emt 0:00:00]} 6. Bg5 {[%emt 0:00:00]} e6 {[%emt 0:00:09]} 7. f4 {[%emt 0:00:00]} h6 {[%emt 0:00:19]} 8. Bh4 {[%emt 0:00:20]} Nbd7 {[%emt 0:00:13]} 9. Be2 {[%emt 0:22:07]} b5 {[%emt 0:11:59]} 10. f5 {[%emt 0:09:30]} e5 {[%emt 0:13:15]} 11. Ne6 {[%emt 0:00:59]} fxe6 {[%emt 0:04:26]} 12. fxe6 {[%emt 0:10:30]} Nb6 {[%emt 0:01:38]} 13. Bh5+ {[%emt 0:02:58]} Ke7 {[%emt 0:00:15]} 14. O-O {[%emt 0:11:23]} Bxe6 {[%emt 0:02:21]} 15. Nd5+ {[%emt 0:00:14]} Bxd5 {[%emt 0:01:37]} 16. exd5 {[%emt 0:00:10]} Kd7 {[%emt 0:04:32]} 17. Bf7 {[%emt 0:08:09]} Be7 {[%emt 0:05:36]} 18. Bf2 {[%emt 0:00:36]} Kc7 {[%emt 0:08:01]} 19. Re1 {[%emt 0:00:45]} Kb7 {[%emt 0:01:28]} 20. a4 {[%emt 0:02:11]} Qc7 {[%emt 0:07:06]} 21. a5 {[%emt 0:00:34]} Nc4 {[%emt 0:02:12]} 22. b3 {[%emt 0:01:07]} Nxa5 {[%emt 0:01:19]} 23. c4 {[%emt 0:03:05]} Nd7 {[%emt 0:12:21]} 24. c5 {[%emt 0:00:38]} Nxc5 {[%emt 0:05:02]} 25. b4 {[%emt 0:00:07]} Rhf8 {[%emt 0:01:15]} 26. Bh5 {[%emt 0:00:28]} Ncb3 {[%emt 0:00:35]} 27. Ra2 {[%emt 0:02:12]} Bd8 {[%emt 0:05:02]} 28. bxa5 {[%emt 0:00:47]} Nxa5 {[%emt 0:00:37]} 29. Rc2 {[%emt 0:01:12]} Nc4 {[%emt 0:00:30]} 30. Qd3 {[%emt 0:02:02]} Qd7 {[%emt 0:07:46]} 31. Rb1 {[%emt 0:05:07]} Bb6 {[%emt 0:02:00]} 32. Qxc4 {[%emt 0:00:04]} Rxf2 {[%emt 0:01:31]} 33. Qc6+ {[%emt 0:00:10]} Qxc6 {[%emt 0:00:04]} 34. dxc6+ {[%emt 0:00:09]} Kc7 {[%emt 0:00:08]} 35. Rxf2 {[%emt 0:00:05]} Rf8 {[%emt 0:00:19]} 36. Rbb2 {[%emt 0:04:38]} d5 {[%emt 0:01:54]} 37. Bf3 {[%emt 0:03:06]} e4 {[%emt 0:01:03]} 0-1

[Event "BL Meisterschaftsturnier 2020"]
[Site "Karlsruhe"]
[Date "2020.09.17"]
[Round "3.5"]
[White "Anton Guijarro, David"]
[Black "Van Wely, Loek"]
[Result "0-1"]
[ECO "B89"]
[WhiteElo "2688"]
[BlackElo "2615"]
[Annotator "ChessBase"]
[PlyCount "104"]
[EventDate "2020.09.16"]
[EventType "team-tourn"]
[EventCountry "GER"]
[WhiteTeam "Viernheim"]
[BlackTeam "Solingen"]
[TimeControl "40/5400+30:1800+30"]

1. e4 {[%emt 0:00:00]} c5 {[%emt 0:00:00]} 2. Nf3 {[%emt 0:00:00]} e6 {[%emt 0:01:12]} 3. d4 {[%emt 0:01:15]} cxd4 {[%emt 0:00:09]} 4. Nxd4 {[%emt 0:00:04]} Nc6 {[%emt 0:00:35]} 5. Nc3 {[%emt 0:00:55]} d6 {[%emt 0:02:02]} 6. Be3 {[%emt 0:03:28]} Nf6 {[%emt 0:00:58]} 7. Bc4 {[%emt 0:04:21]} a6 {[%emt 0:01:25]} 8. Qe2 {[%emt 0:07:08]} Be7 {[%emt 0:03:33]} 9. O-O-O {[%emt 0:01:34]} Qc7 {[%emt 0:02:55]} 10. Bb3 {[%emt 0:00:59]} Na5 {[%emt 0:03:08]} 11. g4 {[%emt 0:15:02]} b5 {[%emt 0:00:51]} 12. g5 {[%emt 0:00:29]} Nxb3+ {[%emt 0:00:13]} 13. axb3 {[%emt 0:07:52]} Nd7 {[%emt 0:00:49]} 14. Nf5 {[%emt 0:12:41]} exf5 {[%emt 0:03:50]} 15. Nd5 {[%emt 0:00:21]} Qd8 {[%emt 0:00:49]} 16. exf5 {[%emt 0:01:18]} Bb7 {[%emt 0:00:32]} 17. Rhg1 {[%emt 0:02:16]} Bxd5 {[%emt 0:16:05]} 18. Rxd5 {[%emt 0:00:04]} O-O {[%emt 0:02:24]} 19. f6 {[%emt 0:02:54]} Nxf6 {[%emt 0:01:00]} 20. gxf6 {[%emt 0:00:05]} Bxf6 {[%emt 0:00:06]} 21. Rgd1 {[%emt 0:05:54]} Qe7 {[%emt 0:15:05]} 22. Rxd6 {[%emt 0:00:28]} Be5 {[%emt 0:00:39]} 23. Rd7 {[%emt 0:06:24]} Qf6 {[%emt 0:03:07]} 24. Kb1 {[%emt 0:00:11]} Rfe8 {[%emt 0:09:49]} 25. h3 {[%emt 0:10:03]} Rac8 {[%emt 0:07:03]} 26. Qd3 {[%emt 0:03:14]} Bxb2 {[%emt 0:08:41]} 27. Rd6 {[%emt 0:00:22]} Qe5 {[%emt 0:00:22]} 28. Rxa6 {[%emt 0:04:48]} Bc3 {[%emt 0:00:34]} 29. Bd4 {[%emt 0:04:53]} Bxd4 {[%emt 0:01:08]} 30. Qxd4 {[%emt 0:00:05]} Qf5 {[%emt 0:02:33]} 31. Rd2 {[%emt 0:02:04]} h5 {[%emt 0:02:46]} 32. Rd6 {[%emt 0:01:11]} Qxh3 {[%emt 0:01:16]} 33. Kb2 {[%emt 0:00:14]} Qf1 {[%emt 0:06:19]} 34. Rd5 {[%emt 0:01:01]} Ra8 {[%emt 0:02:54]} 35. Rd1 {[%emt 0:00:19]} Qe2 {[%emt 0:00:06]} 36. Rg1 {[%emt 0:02:04]} g6 {[%emt 0:00:18]} 37. Rd6 {[%emt 0:00:42]} Qe5 {[%emt 0:01:26]} 38. f4 {[%emt 0:00:19]} Qxd4+ {[%emt 0:00:27]} 39. Rxd4 {[%emt 0:00:02]} Rad8 {[%emt 0:00:45]} 40. Kc3 {[%emt 0:01:00]} Re3+ {[%emt 0:01:08]} 41. Kd2 {[%emt 0:31:09]} Ree8 {[%emt 0:05:01]} 42. Kd3 {[%emt 0:00:00]} b4 {[%emt 0:06:37]} 43. c4 {[%emt 0:00:00]} bxc3 {[%emt 0:00:18]} 44. b4 {[%emt 0:00:00]} Rxd4+ {[%emt 0:12:07]} 45. Kxd4 {[%emt 0:00:00]} Rc8 {[%emt 0:00:07]} 46. b5 {[%emt 0:00:00]} h4 {[%emt 0:00:29]} 47. b6 {[%emt 0:00:00]} h3 {[%emt 0:03:58]} 48. b7 {[%emt 0:00:00]} Rb8 {[%emt 0:00:43]} 49. Kxc3 {[%emt 0:00:00]} Rxb7 {[%emt 0:00:07]} 50. f5 {[%emt 0:00:00]} h2 {[%emt 0:01:20]} 51. Rh1 {[%emt 0:00:00]} g5 {[%emt 0:00:18]} 52. Rxh2 {[%emt 0:00:00]} Kg7 {[%emt 0:00:06]} 0-1